[Event "Titled Tuesday Blitz March 14 Early 2023"]
[White "Botez, Alexandra"]
[Black "Loiacono, Antonio"]
[WhiteFideId "2603365"]
[BlackFideId "895415"]
[WhiteElo "2059"]
[BlackElo "2257"]
[Result "0-1"]
[Round "02"]
[TimeControl "180+2"]
[Date "2023.03.14"]
[WhiteClock "0:00:09"]
[BlackClock "0:00:10"]

1. d4 {[%clk 0:03:00]}  Nf6 {[%clk 0:02:58]} 2. c4 {[%clk 0:03:00]}  c5 {[%clk 0:02:58]} 3. d5 {[%clk 0:03:00]}  b5 {[%clk 0:02:58]} 4. cxb5 {[%clk 0:03:00]}  a6 {[%clk 0:02:58]} 5. bxa6 {[%clk 0:03:01]}  g6 {[%clk 0:02:57]} 6. Nf3 {[%clk 0:02:55]}  Bg7 {[%clk 0:02:57]} 7. g3 {[%clk 0:02:55]}  O-O {[%clk 0:02:53]} 8. Bg2 {[%clk 0:02:55]}  d6 {[%clk 0:02:53]} 9. O-O {[%clk 0:02:54]}  Nxa6 {[%clk 0:02:44]} 10. Nc3 {[%clk 0:02:50]}  Bf5 {[%clk 0:02:36]} 11. Ne1 {[%clk 0:02:41]}  Qd7 {[%clk 0:02:25]} 12. e4 {[%clk 0:02:41]}  Bh3 {[%clk 0:02:25]} 13. Rb1 {[%clk 0:02:20]}  Rfb8 {[%clk 0:02:23]} 14. a3 {[%clk 0:02:15]}  Nc7 {[%clk 0:02:20]} 15. Qc2 {[%clk 0:02:15]}  Bxg2 {[%clk 0:01:51]} 16. Kxg2 {[%clk 0:02:12]}  Nb5 {[%clk 0:01:49]} 17. Nxb5 {[%clk 0:02:08]}  Qxb5 {[%clk 0:01:50]} 18. b3 {[%clk 0:01:28]}  Qa6 {[%clk 0:01:25]} 19. Nf3 {[%clk 0:01:20]}  Rb7 {[%clk 0:01:18]} 20. Re1 {[%clk 0:01:19]}  Rab8 {[%clk 0:01:18]} 21. Nd2 {[%clk 0:01:18]}  Nd7 {[%clk 0:01:17]} 22. Bb2 {[%clk 0:01:17]}  Bxb2 {[%clk 0:01:06]} 23. Qxb2 {[%clk 0:01:16]}  Ne5 {[%clk 0:01:06]} 24. Re3 {[%clk 0:01:04]}  Ra8 {[%clk 0:01:02]} 25. Ra1 {[%clk 0:01:00]}  Ng4 {[%clk 0:00:54]} 26. Ree1 {[%clk 0:00:56]}  Qd3 {[%clk 0:00:44]} 27. h3 {[%clk 0:00:46]}  Ne5 {[%clk 0:00:40]} 28. Re3 {[%clk 0:00:45]}  Qb5 {[%clk 0:00:35]} 29. Qc2 {[%clk 0:00:41]}  Rba7 {[%clk 0:00:32]} 30. a4 {[%clk 0:00:37]}  Qb4 {[%clk 0:00:32]} 31. f4 {[%clk 0:00:34]}  Nd7 {[%clk 0:00:33]} 32. Nc4 {[%clk 0:00:33]}  Rb7 {[%clk 0:00:26]} 33. Rf1 {[%clk 0:00:32]}  Nb6 {[%clk 0:00:20]} 34. Nxb6 {[%clk 0:00:30]}  Qxb6 {[%clk 0:00:21]} 35. Ref3 {[%clk 0:00:26]}  Rab8 {[%clk 0:00:17]} 36. f5 {[%clk 0:00:18]}  Qd8 {[%clk 0:00:04]} 37. Qd2 {[%clk 0:00:15]}  f6 {[%clk 0:00:03]} 38. fxg6 {[%clk 0:00:14]}  hxg6 {[%clk 0:00:04]} 39. Qh6 {[%clk 0:00:15]}  Qe8 {[%clk 0:00:04]} 40. h4 {[%clk 0:00:14]}  Qf7 {[%clk 0:00:04]} 41. Qd2 {[%clk 0:00:13]}  Qg7 {[%clk 0:00:03]} 42. Qc3 {[%clk 0:00:12]}  Rb4 {[%clk 0:00:04]} 43. Re3 {[%clk 0:00:11]}  Qf7 {[%clk 0:00:03]} 44. Qc2 {[%clk 0:00:11]}  Qg7 {[%clk 0:00:04]} 45. Rfe1 {[%clk 0:00:10]}  Qh6 {[%clk 0:00:04]} 46. Rf3 {[%clk 0:00:10]}  Qh5 {[%clk 0:00:05]} 47. Ree3 {[%clk 0:00:08]}  Qe5 {[%clk 0:00:06]} 48. Qf2 {[%clk 0:00:08]}  Kg7 {[%clk 0:00:06]} 49. Kh3 {[%clk 0:00:08]}  R4b7 {[%clk 0:00:06]} 50. g4 {[%clk 0:00:09]}  Rh8 {[%clk 0:00:06]} 51. Qg3 {[%clk 0:00:09]}  Qa1 {[%clk 0:00:02]} 52. Kg2 {[%clk 0:00:07]}  Rbb8 {[%clk 0:00:02]} 53. Qf2 {[%clk 0:00:03]}  Qd4 {[%clk 0:00:02]} 54. Re1 {[%clk 0:00:02]}  Qe5 {[%clk 0:00:03]} 55. Qg3 {[%clk 0:00:02]}  Rbf8 {[%clk 0:00:02]} 56. Re2 {[%clk 0:00:02]}  Qd4 {[%clk 0:00:02]} 57. Qf2 {[%clk 0:00:03]}  Qxf2+ {[%clk 0:00:02]} 58. Rexf2 {[%clk 0:00:03]}  Rxh4 {[%clk 0:00:03]} 59. Rg3 {[%clk 0:00:02]}  Rfh8 {[%clk 0:00:03]} 60. Kf3 {[%clk 0:00:02]}  Rh1 {[%clk 0:00:03]} 61. Ra2 {[%clk 0:00:02]}  Rb1 {[%clk 0:00:04]} 62. a5 {[%clk 0:00:01]}  Ra8 {[%clk 0:00:04]} 63. Kg2 {[%clk 0:00:02]}  Rc1 {[%clk 0:00:04]} 64. Rf3 {[%clk 0:00:02]}  c4 {[%clk 0:00:04]} 65. bxc4 {[%clk 0:00:03]}  Rxc4 {[%clk 0:00:04]} 66. a6 {[%clk 0:00:03]}  Rxe4 {[%clk 0:00:04]} 67. a7 {[%clk 0:00:04]}  Rb4 {[%clk 0:00:04]} 68. Rc3 {[%clk 0:00:04]}  Rb7 {[%clk 0:00:05]} 69. Re3 {[%clk 0:00:03]}  Rbxa7 {[%clk 0:00:05]} 70. Rae2 {[%clk 0:00:04]}  Re8 {[%clk 0:00:04]} 71. Kg3 {[%clk 0:00:05]}  Kf7 {[%clk 0:00:05]} 72. Rh2 {[%clk 0:00:05]}  Kg7 {[%clk 0:00:04]} 73. Rhe2 {[%clk 0:00:05]}  Rd7 {[%clk 0:00:05]} 74. Rh2 {[%clk 0:00:05]}  e5 {[%clk 0:00:04]} 75. dxe6 {[%clk 0:00:06]}  Rde7 {[%clk 0:00:04]} 76. Rhe2 {[%clk 0:00:06]}  f5 {[%clk 0:00:05]} 77. gxf5 {[%clk 0:00:06]}  gxf5 {[%clk 0:00:06]} 78. Kf4 {[%clk 0:00:06]}  Kf6 {[%clk 0:00:06]} 79. Rh2 {[%clk 0:00:07]}  Rxe6 {[%clk 0:00:06]} 80. Rh6+ {[%clk 0:00:07]}  Kf7 {[%clk 0:00:06]} 81. Rh7+ {[%clk 0:00:07]}  Kg6 {[%clk 0:00:07]} 82. Rxe6+ {[%clk 0:00:07]}  Rxe6 {[%clk 0:00:08]} 83. Rd7 {[%clk 0:00:07]}  Re4+ {[%clk 0:00:08]} 84. Kf3 {[%clk 0:00:07]}  Rd4 {[%clk 0:00:08]} 85. Re7 {[%clk 0:00:07]}  Kf6 {[%clk 0:00:08]} 86. Re8 {[%clk 0:00:07]}  Rd5 {[%clk 0:00:08]} 87. Kf4 {[%clk 0:00:07]}  Rd4+ {[%clk 0:00:08]} 88. Kf3 {[%clk 0:00:08]}  Re4 {[%clk 0:00:08]} 89. Rd8 {[%clk 0:00:08]}  Ke6 {[%clk 0:00:09]} 90. Re8+ {[%clk 0:00:08]}  Kd5 {[%clk 0:00:09]} 91. Rf8 {[%clk 0:00:08]}  Re5 {[%clk 0:00:10]} 92. Ra8 {[%clk 0:00:08]}  Kc5 {[%clk 0:00:08]} 93. Ra4 {[%clk 0:00:08]}  d5 {[%clk 0:00:08]} 94. Kf4 {[%clk 0:00:08]}  Re4+ {[%clk 0:00:08]} 95. Rxe4 {[%clk 0:00:08]}  fxe4 {[%clk 0:00:09]} 96. Ke3 {[%clk 0:00:09]}  Kc4 {[%clk 0:00:10]} 0-1


[Site "https://www.chess.com"]

[Event "Titled Tuesday Blitz March 14 Early 2023"]
[White "Garakov, Mikhael"]
[Black "Ruge, Edison"]
[WhiteFideId "4169034"]
[BlackFideId "4401000"]
[WhiteElo "2347"]
[BlackElo "2175"]
[Result "1-0"]
[Round "02"]
[TimeControl "180+2"]
[Date "2023.03.14"]
[WhiteClock "0:00:12"]
[BlackClock "0:00:01"]

1. e4 {[%clk 0:03:00]}  e5 {[%clk 0:02:59]} 2. Nf3 {[%clk 0:03:00]}  Nc6 {[%clk 0:03:00]} 3. Bb5 {[%clk 0:03:00]}  f5 {[%clk 0:03:00]} 4. Nc3 {[%clk 0:02:58]}  fxe4 {[%clk 0:02:59]} 5. Nxe4 {[%clk 0:02:57]}  Nf6 {[%clk 0:03:00]} 6. Qe2 {[%clk 0:02:40]}  d5 {[%clk 0:02:57]} 7. Nxf6+ {[%clk 0:02:40]}  gxf6 {[%clk 0:02:56]} 8. d4 {[%clk 0:02:24]}  Bg7 {[%clk 0:02:53]} 9. dxe5 {[%clk 0:02:15]}  O-O {[%clk 0:02:51]} 10. Bxc6 {[%clk 0:01:56]}  bxc6 {[%clk 0:02:47]} 11. e6 {[%clk 0:01:56]}  Re8 {[%clk 0:02:46]} 12. O-O {[%clk 0:01:48]}  Rxe6 {[%clk 0:02:45]} 13. Qd3 {[%clk 0:01:48]}  Qe8 {[%clk 0:02:45]} 14. Nd4 {[%clk 0:01:36]}  Re4 {[%clk 0:02:44]} 15. f3 {[%clk 0:01:35]}  Re1 {[%clk 0:02:16]} 16. Bd2 {[%clk 0:01:29]}  Rxa1 {[%clk 0:02:15]} 17. Rxa1 {[%clk 0:01:29]}  c5 {[%clk 0:02:02]} 18. Nb5 {[%clk 0:01:14]}  Qf7 {[%clk 0:01:30]} 19. Nxc7 {[%clk 0:01:13]}  Rb8 {[%clk 0:01:18]} 20. Nxd5 {[%clk 0:00:29]}  Be6 {[%clk 0:00:42]} 21. Nf4 {[%clk 0:00:26]}  Bc4 {[%clk 0:00:32]} 22. Qd6 {[%clk 0:00:24]}  Rxb2 {[%clk 0:00:31]} 23. Re1 {[%clk 0:00:22]}  Bf8 {[%clk 0:00:28]} 24. Qd8 {[%clk 0:00:17]}  Rxc2 {[%clk 0:00:19]} 25. h4 {[%clk 0:00:16]}  Rxd2 {[%clk 0:00:09]} 26. Qxd2 {[%clk 0:00:15]}  Qc7 {[%clk 0:00:06]} 27. Nd5 {[%clk 0:00:14]}  Bxd5 {[%clk 0:00:05]} 28. Qxd5+ {[%clk 0:00:14]}  Kg7 {[%clk 0:00:06]} 29. Re4 {[%clk 0:00:12]}  h5 {[%clk 0:00:04]} 30. Qxh5 {[%clk 0:00:12]}  c4 {[%clk 0:00:01]} 31. Rg4# {[%clk 0:00:12]} 1-0


[Site "https://www.chess.com"]

[Event "Titled Tuesday Blitz March 14 Early 2023"]
[White "Kowalysko, Roman"]
[Black "Kozin, Yuri"]
[WhiteFideId "30918510"]
[BlackFideId "4129920"]
[WhiteElo "2241"]
[BlackElo "2527"]
[Result "0-1"]
[Round "02"]
[TimeControl "180+2"]
[Date "2023.03.14"]
[WhiteClock "0:00:13"]
[BlackClock "0:00:17"]

1. Nc3 {[%clk 0:02:59]}  c5 {[%clk 0:02:58]} 2. e4 {[%clk 0:02:59]}  e6 {[%clk 0:02:58]} 3. Nf3 {[%clk 0:02:59]}  a6 {[%clk 0:02:58]} 4. d4 {[%clk 0:03:00]}  cxd4 {[%clk 0:02:59]} 5. Nxd4 {[%clk 0:03:00]}  Qc7 {[%clk 0:02:59]} 6. Qf3 {[%clk 0:03:00]}  Nc6 {[%clk 0:02:57]} 7. Nxc6 {[%clk 0:03:00]}  dxc6 {[%clk 0:02:55]} 8. Qg3 {[%clk 0:03:00]}  e5 {[%clk 0:02:52]} 9. Bg5 {[%clk 0:03:00]}  Nf6 {[%clk 0:02:39]} 10. Bxf6 {[%clk 0:03:00]}  gxf6 {[%clk 0:02:40]} 11. O-O-O {[%clk 0:02:56]}  Be6 {[%clk 0:02:38]} 12. Be2 {[%clk 0:02:46]}  Bb4 {[%clk 0:02:05]} 13. Qh4 {[%clk 0:02:42]}  Bxc3 {[%clk 0:01:56]} 14. bxc3 {[%clk 0:02:42]}  Ke7 {[%clk 0:01:56]} 15. Bg4 {[%clk 0:02:41]}  Bxa2 {[%clk 0:01:40]} 16. Rd7+ {[%clk 0:02:39]}  Qxd7 {[%clk 0:01:38]} 17. Bxd7 {[%clk 0:02:40]}  Kxd7 {[%clk 0:01:38]} 18. Qxf6 {[%clk 0:02:40]}  Rae8 {[%clk 0:01:33]} 19. Rd1+ {[%clk 0:02:40]}  Kc7 {[%clk 0:01:33]} 20. Qd6+ {[%clk 0:02:39]}  Kb6 {[%clk 0:01:30]} 21. Kb2 {[%clk 0:02:32]}  Be6 {[%clk 0:01:24]} 22. Qxe5 {[%clk 0:02:23]}  Rhg8 {[%clk 0:01:21]} 23. Qd4+ {[%clk 0:02:20]}  Kc7 {[%clk 0:01:21]} 24. Qd6+ {[%clk 0:02:18]}  Kc8 {[%clk 0:01:21]} 25. g3 {[%clk 0:02:14]}  Rd8 {[%clk 0:01:18]} 26. Qe7 {[%clk 0:01:57]}  Rxd1 {[%clk 0:01:17]} 27. f4 {[%clk 0:01:57]}  Rd2 {[%clk 0:00:54]} 28. f5 {[%clk 0:01:57]}  Bc4 {[%clk 0:00:54]} 29. f6 {[%clk 0:01:30]}  Rgd8 {[%clk 0:00:46]} 30. Qe5 {[%clk 0:01:19]}  Rxh2 {[%clk 0:00:33]} 31. Qf4 {[%clk 0:01:01]}  Be6 {[%clk 0:00:29]} 32. e5 {[%clk 0:00:37]}  Rdd2 {[%clk 0:00:28]} 33. Ka3 {[%clk 0:00:32]}  Rxc2 {[%clk 0:00:25]} 34. Kb4 {[%clk 0:00:32]}  Rb2+ {[%clk 0:00:19]} 35. Kc5 {[%clk 0:00:33]}  Kc7 {[%clk 0:00:19]} 36. c4 {[%clk 0:00:30]}  b6+ {[%clk 0:00:18]} 37. Kd4 {[%clk 0:00:31]}  Rbd2+ {[%clk 0:00:18]} 38. Ke3 {[%clk 0:00:31]}  Rhe2+ {[%clk 0:00:18]} 39. Kf3 {[%clk 0:00:32]}  Rf2+ {[%clk 0:00:18]} 40. Ke4 {[%clk 0:00:32]}  Rxf4+ {[%clk 0:00:19]} 41. gxf4 {[%clk 0:00:33]}  c5 {[%clk 0:00:16]} 42. f5 {[%clk 0:00:33]}  Rd4+ {[%clk 0:00:17]} 43. Ke3 {[%clk 0:00:34]}  Bxf5 {[%clk 0:00:18]} 44. e6 {[%clk 0:00:34]}  Bxe6 {[%clk 0:00:18]} 45. Ke2 {[%clk 0:00:34]}  Rxc4 {[%clk 0:00:19]} 46. Kd3 {[%clk 0:00:34]}  Rf4 {[%clk 0:00:19]} 47. Ke3 {[%clk 0:00:35]}  Rxf6 {[%clk 0:00:20]} 48. Ke4 {[%clk 0:00:36]}  Rf5 {[%clk 0:00:20]} 49. Ke3 {[%clk 0:00:36]}  h5 {[%clk 0:00:21]} 50. Kd3 {[%clk 0:00:37]}  h4 {[%clk 0:00:22]} 51. Ke3 {[%clk 0:00:37]}  h3 {[%clk 0:00:23]} 52. Ke2 {[%clk 0:00:38]}  h2 {[%clk 0:00:21]} 53. Ke3 {[%clk 0:00:38]}  h1=Q {[%clk 0:00:21]} 54. Ke2 {[%clk 0:00:39]}  Qf3+ {[%clk 0:00:19]} 55. Kd2 {[%clk 0:00:39]}  Rd5+ {[%clk 0:00:19]} 56. Kc2 {[%clk 0:00:39]}  Qd3+ {[%clk 0:00:19]} 57. Kb2 {[%clk 0:00:40]}  Qd2+ {[%clk 0:00:18]} 58. Ka3 {[%clk 0:00:36]}  Rd3+ {[%clk 0:00:18]} 59. Ka4 {[%clk 0:00:13]}  Qa2# {[%clk 0:00:17]} 0-1


[Site "https://www.chess.com"]

[Event "Titled Tuesday Blitz March 14 Early 2023"]
[White "Chakravarthi Reddy, M"]
[Black "Escano Dionicio, Porfirio Simeon"]
[WhiteFideId "25009532"]
[BlackFideId "6406181"]
[WhiteElo "2201"]
[BlackElo "1968"]
[Result "0-1"]
[Round "02"]
[TimeControl "180+2"]
[Date "2023.03.14"]
[WhiteClock "0:00:24"]
[BlackClock "0:00:27"]

1. c4 {[%clk 0:02:59]}  Nf6 {[%clk 0:02:58]} 2. Nc3 {[%clk 0:02:56]}  g6 {[%clk 0:02:58]} 3. d4 {[%clk 0:02:57]}  Bg7 {[%clk 0:02:58]} 4. e4 {[%clk 0:02:57]}  d6 {[%clk 0:02:59]} 5. Be2 {[%clk 0:02:58]}  O-O {[%clk 0:02:58]} 6. Be3 {[%clk 0:02:59]}  Nbd7 {[%clk 0:02:57]} 7. h3 {[%clk 0:02:58]}  c5 {[%clk 0:02:56]} 8. Nf3 {[%clk 0:02:57]}  cxd4 {[%clk 0:02:51]} 9. Nxd4 {[%clk 0:02:58]}  Re8 {[%clk 0:02:43]} 10. O-O {[%clk 0:02:58]}  b6 {[%clk 0:02:42]} 11. Qd2 {[%clk 0:02:57]}  Bb7 {[%clk 0:02:42]} 12. f3 {[%clk 0:02:55]}  a6 {[%clk 0:02:38]} 13. Nd5 {[%clk 0:02:43]}  Rc8 {[%clk 0:02:36]} 14. b3 {[%clk 0:02:40]}  e6 {[%clk 0:02:34]} 15. Nxf6+ {[%clk 0:02:29]}  Bxf6 {[%clk 0:02:32]} 16. Rad1 {[%clk 0:02:30]}  Qc7 {[%clk 0:02:32]} 17. Kh1 {[%clk 0:02:28]}  h5 {[%clk 0:02:27]} 18. Bg5 {[%clk 0:02:26]}  Bg7 {[%clk 0:02:25]} 19. Bh6 {[%clk 0:02:25]}  Rcd8 {[%clk 0:02:19]} 20. Qg5 {[%clk 0:02:21]}  Qc5 {[%clk 0:02:11]} 21. Qe3 {[%clk 0:02:03]}  Nf8 {[%clk 0:01:32]} 22. Bxg7 {[%clk 0:01:57]}  Kxg7 {[%clk 0:01:32]} 23. Qc3 {[%clk 0:01:57]}  e5 {[%clk 0:01:30]} 24. Nc2 {[%clk 0:01:56]}  Ne6 {[%clk 0:01:30]} 25. g3 {[%clk 0:01:49]}  h4 {[%clk 0:01:28]} 26. f4 {[%clk 0:01:38]}  hxg3 {[%clk 0:01:24]} 27. Rd5 {[%clk 0:01:16]}  Bxd5 {[%clk 0:01:12]} 28. exd5 {[%clk 0:01:17]}  Nd4 {[%clk 0:01:07]} 29. Bd3 {[%clk 0:01:01]}  Nxc2 {[%clk 0:01:04]} 30. Bxc2 {[%clk 0:00:59]}  Qd4 {[%clk 0:00:56]} 31. Qxg3 {[%clk 0:00:54]}  exf4 {[%clk 0:00:56]} 32. Rxf4 {[%clk 0:00:50]}  Qa1+ {[%clk 0:00:40]} 33. Kg2 {[%clk 0:00:44]}  Re2+ {[%clk 0:00:39]} 34. Rf2 {[%clk 0:00:44]}  Qe1 {[%clk 0:00:33]} 35. Qf3 {[%clk 0:00:30]}  Qxf2+ {[%clk 0:00:30]} 36. Qxf2 {[%clk 0:00:31]}  Rxf2+ {[%clk 0:00:30]} 37. Kxf2 {[%clk 0:00:31]}  f5 {[%clk 0:00:30]} 38. b4 {[%clk 0:00:29]}  a5 {[%clk 0:00:29]} 39. a3 {[%clk 0:00:26]}  axb4 {[%clk 0:00:30]} 40. axb4 {[%clk 0:00:27]}  Kf6 {[%clk 0:00:30]} 41. Ke3 {[%clk 0:00:25]}  Ke5 {[%clk 0:00:30]} 42. Kf3 {[%clk 0:00:24]}  Rh8 {[%clk 0:00:27]} 43. Kg2 {[%clk 0:00:24]}  Ra8 {[%clk 0:00:27]} 0-1


[Site "https://www.chess.com"]

[Event "Titled Tuesday Blitz March 14 Early 2023"]
[White "Phillips, Rene"]
[Black "Wartiovaara, Oliver"]
[WhiteFideId "2056275"]
[BlackFideId "513024"]
[WhiteElo "2212"]
[BlackElo "2214"]
[Result "0-1"]
[Round "02"]
[TimeControl "180+2"]
[Date "2023.03.14"]
[WhiteClock "0:00:12"]
[BlackClock "0:00:30"]

1. Nf3 {[%clk 0:03:00]}  d5 {[%clk 0:02:54]} 2. d4 {[%clk 0:03:01]}  Bf5 {[%clk 0:02:53]} 3. Bf4 {[%clk 0:03:01]}  Nf6 {[%clk 0:02:50]} 4. e3 {[%clk 0:03:02]}  e6 {[%clk 0:02:49]} 5. Be2 {[%clk 0:03:01]}  Be7 {[%clk 0:02:47]} 6. O-O {[%clk 0:03:02]}  Ne4 {[%clk 0:02:47]} 7. c4 {[%clk 0:03:01]}  g5 {[%clk 0:02:45]} 8. Be5 {[%clk 0:02:59]}  f6 {[%clk 0:02:43]} 9. Bg3 {[%clk 0:02:58]}  h5 {[%clk 0:02:43]} 10. Qa4+ {[%clk 0:02:36]}  Qd7 {[%clk 0:02:35]} 11. Qxd7+ {[%clk 0:02:34]}  Kxd7 {[%clk 0:02:36]} 12. h3 {[%clk 0:02:15]}  Nxg3 {[%clk 0:02:30]} 13. fxg3 {[%clk 0:02:16]}  dxc4 {[%clk 0:02:28]} 14. Bxc4 {[%clk 0:02:15]}  Bd6 {[%clk 0:02:25]} 15. Kf2 {[%clk 0:02:13]}  g4 {[%clk 0:02:04]} 16. Ng1 {[%clk 0:02:02]}  c5 {[%clk 0:01:54]} 17. Bb5+ {[%clk 0:01:53]}  Nc6 {[%clk 0:01:52]} 18. Nc3 {[%clk 0:01:47]}  cxd4 {[%clk 0:01:50]} 19. exd4 {[%clk 0:01:46]}  a6 {[%clk 0:01:48]} 20. Bxc6+ {[%clk 0:01:43]}  bxc6 {[%clk 0:01:44]} 21. Rac1 {[%clk 0:01:30]}  Rab8 {[%clk 0:01:40]} 22. Na4 {[%clk 0:01:23]}  Rb4 {[%clk 0:01:37]} 23. b3 {[%clk 0:01:20]}  Rxd4 {[%clk 0:01:24]} 24. Rfd1 {[%clk 0:01:17]}  Rxd1 {[%clk 0:01:21]} 25. Rxd1 {[%clk 0:01:18]}  Kc7 {[%clk 0:01:21]} 26. h4 {[%clk 0:01:16]}  Be4 {[%clk 0:01:13]} 27. Ne2 {[%clk 0:01:15]}  Bd5 {[%clk 0:01:13]} 28. Nf4 {[%clk 0:01:07]}  Bxf4 {[%clk 0:01:03]} 29. gxf4 {[%clk 0:01:07]}  g3+ {[%clk 0:01:03]} 30. Kg1 {[%clk 0:01:03]}  Rg8 {[%clk 0:00:58]} 31. Nc5 {[%clk 0:00:54]}  Rg4 {[%clk 0:00:55]} 32. Nxa6+ {[%clk 0:00:53]}  Kb6 {[%clk 0:00:54]} 33. Nb8 {[%clk 0:00:45]}  Rxf4 {[%clk 0:00:51]} 34. Rd3 {[%clk 0:00:36]}  Rxh4 {[%clk 0:00:39]} 35. Rxg3 {[%clk 0:00:34]}  Rg4 {[%clk 0:00:39]} 36. Rxg4 {[%clk 0:00:30]}  hxg4 {[%clk 0:00:40]} 37. Nd7+ {[%clk 0:00:30]}  Ka5 {[%clk 0:00:37]} 38. Nxf6 {[%clk 0:00:27]}  g3 {[%clk 0:00:37]} 39. Nh5 {[%clk 0:00:25]}  Kb4 {[%clk 0:00:37]} 40. Nxg3 {[%clk 0:00:25]}  Ka3 {[%clk 0:00:38]} 41. Nf1 {[%clk 0:00:17]}  Kxa2 {[%clk 0:00:37]} 42. g4 {[%clk 0:00:17]}  Kxb3 {[%clk 0:00:35]} 43. g5 {[%clk 0:00:16]}  e5 {[%clk 0:00:35]} 44. g6 {[%clk 0:00:15]}  c5 {[%clk 0:00:33]} 45. Kf2 {[%clk 0:00:15]}  c4 {[%clk 0:00:33]} 46. g7 {[%clk 0:00:16]}  c3 {[%clk 0:00:32]} 47. Ne3 {[%clk 0:00:15]}  Bg8 {[%clk 0:00:32]} 48. Ke2 {[%clk 0:00:14]}  e4 {[%clk 0:00:30]} 49. Nd1 {[%clk 0:00:13]}  c2 {[%clk 0:00:29]} 50. Kd2 {[%clk 0:00:11]}  cxd1=Q+ {[%clk 0:00:29]} 51. Kxd1 {[%clk 0:00:11]}  Kc3 {[%clk 0:00:29]} 52. Ke2 {[%clk 0:00:11]}  Kd4 {[%clk 0:00:30]} 53. Kf2 {[%clk 0:00:12]}  Kd3 {[%clk 0:00:30]} 54. Kg3 {[%clk 0:00:12]}  e3 {[%clk 0:00:30]} 0-1


[Site "https://www.chess.com"]

[Event "Titled Tuesday Blitz March 14 Early 2023"]
[White "Baghdasaryan, Vahe"]
[Black "Quirke, Jeffrey"]
[WhiteFideId "13303139"]
[BlackFideId "2013029"]
[WhiteElo "2216"]
[BlackElo "2203"]
[Result "1-0"]
[Round "02"]
[TimeControl "180+2"]
[Date "2023.03.14"]
[WhiteClock "0:00:12"]
[BlackClock "0:00:06"]

1. e4 {[%clk 0:02:51]}  Nf6 {[%clk 0:02:54]} 2. e5 {[%clk 0:02:48]}  Nd5 {[%clk 0:02:54]} 3. c4 {[%clk 0:02:45]}  Nb6 {[%clk 0:02:53]} 4. c5 {[%clk 0:02:45]}  Nd5 {[%clk 0:02:52]} 5. Bc4 {[%clk 0:02:45]}  c6 {[%clk 0:02:30]} 6. Nc3 {[%clk 0:02:30]}  e6 {[%clk 0:02:18]} 7. Ne4 {[%clk 0:02:25]}  Be7 {[%clk 0:02:13]} 8. d4 {[%clk 0:02:11]}  O-O {[%clk 0:02:12]} 9. Ne2 {[%clk 0:02:10]}  b6 {[%clk 0:02:11]} 10. O-O {[%clk 0:02:07]}  Ba6 {[%clk 0:02:03]} 11. Bxa6 {[%clk 0:02:02]}  Nxa6 {[%clk 0:02:02]} 12. Qd3 {[%clk 0:02:02]}  Nac7 {[%clk 0:01:52]} 13. f4 {[%clk 0:01:53]}  f5 {[%clk 0:01:51]} 14. exf6 {[%clk 0:01:52]}  Nxf6 {[%clk 0:01:47]} 15. N2g3 {[%clk 0:01:47]}  Ncd5 {[%clk 0:01:40]} 16. f5 {[%clk 0:01:45]}  exf5 {[%clk 0:01:30]} 17. Nxf5 {[%clk 0:01:00]}  Nxe4 {[%clk 0:01:30]} 18. Qxe4 {[%clk 0:00:57]}  bxc5 {[%clk 0:01:29]} 19. Bh6 {[%clk 0:00:40]}  Bf6 {[%clk 0:00:42]} 20. Qg4 {[%clk 0:00:34]}  Rf7 {[%clk 0:00:29]} 21. Rae1 {[%clk 0:00:20]}  Kh8 {[%clk 0:00:19]} 22. Nxg7 {[%clk 0:00:15]}  Rxg7 {[%clk 0:00:18]} 23. Bxg7+ {[%clk 0:00:15]}  Bxg7 {[%clk 0:00:19]} 24. dxc5 {[%clk 0:00:15]}  Qg8 {[%clk 0:00:10]} 25. Qxd7 {[%clk 0:00:14]}  Bxb2 {[%clk 0:00:09]} 26. Rf7 {[%clk 0:00:12]}  Bd4+ {[%clk 0:00:07]} 27. Kh1 {[%clk 0:00:11]}  Rf8 {[%clk 0:00:07]} 28. Ref1 {[%clk 0:00:10]}  Rxf7 {[%clk 0:00:06]} 29. Rxf7 {[%clk 0:00:09]}  Bg7 {[%clk 0:00:03]} 30. Qf5 {[%clk 0:00:08]}  Nf6 {[%clk 0:00:02]} 31. Rxf6 {[%clk 0:00:07]}  Bxf6 {[%clk 0:00:02]} 32. Qxf6+ {[%clk 0:00:08]}  Qg7 {[%clk 0:00:02]} 33. Qd8+ {[%clk 0:00:08]}  Qg8 {[%clk 0:00:02]} 34. Qxg8+ {[%clk 0:00:09]}  Kxg8 {[%clk 0:00:02]} 35. g4 {[%clk 0:00:09]}  Kf7 {[%clk 0:00:02]} 36. Kg2 {[%clk 0:00:10]}  Ke6 {[%clk 0:00:03]} 37. h4 {[%clk 0:00:10]}  Kd5 {[%clk 0:00:04]} 38. h5 {[%clk 0:00:11]}  Kxc5 {[%clk 0:00:05]} 39. g5 {[%clk 0:00:11]}  Kd5 {[%clk 0:00:05]} 40. g6 {[%clk 0:00:11]}  hxg6 {[%clk 0:00:06]} 41. h6 {[%clk 0:00:12]} 1-0


[Site "https://www.chess.com"]